fUSD/lending_fUSD_20241006
["ID","MTS","AMOUNT","RATE_DAILY","PERIOD"]
[339947883,1728187851386,1158.82702267,0.00010999,3]
[339947889,1728187851437,1158.82702269,0.00010999,3]
[339948085,1728187927850,173.507078,0.000109,2]
[339948086,1728187936886,132392.50616975,0.000109,2]
[339948087,1728187936914,43512.41553025,0.000109,2]
[339948088,1728187956130,500.0,0.000109,2]
[339948089,1728187979470,7500.0,0.000109,2]
[339948090,1728188021142,160.1545487,0.000109,2]
[339948091,1728188034121,6058.06336395,0.000109,2]
[339948092,1728188070010,840.0,0.0001048,2]
[339948093,1728188082833,3546.34555207,0.00010899,2]
[339948094,1728188130665,250.0,0.0001048,2]
[339948095,1728188134342,4555.87155855,0.000109,2]
[339948096,1728188136733,900.0,0.000103,3]
[339948097,1728188138832,1800.0,0.000104,3]
[339948098,1728188140925,2700.0,0.000105,3]
[339948099,1728188143113,2159.78241352,0.000106,3]
[339948100,1728188143142,1440.21758648,0.000106,3]
[339948101,1728188145108,4500.0,0.000107,3]
[339948102,1728188147206,900.0,0.000108,3]
[339948103,1728188149295,900.0,0.000109,3]
[339948104,1728188149805,1089.0609,0.000109,2]
[339948105,1728188161266,11709.17093161,0.0001089,2]
[339948106,1728188183709,6734.50607239,0.00010899,2]
[339948107,1728188183857,69189.3373,0.000109,2]
[339948108,1728188238784,11670.6508,0.00010899,2]
[339948109,1728188290084,162.03,0.00010468,2]
[339948110,1728188291683,160.1545487,0.000109,2]
[339948111,1728188322104,3712.4026,0.000109,2]
[339948112,1728188367694,1618.9343,0.000109,2]
[339948113,1728188426400,250.0,0.0001045,2]
[339948114,1728188459510,8500.51555608,0.000109,2]
[339948115,1728188463624,696.3,9.061e-05,2]
[339948116,1728188510586,169.23395839,0.000109,2]
[339948117,1728188552199,160.1545487,0.000109,2]
[339948118,1728188574127,409.93,0.00010133,2]
[339948119,1728188610706,23900.0,0.00010133,2]
[339948120,1728188665622,702.37598,0.0001,2]
[339948121,1728188672262,496.0,0.0001015,2]
[339948122,1728188717403,250.0,0.0001016,2]
[339948123,1728188720331,2400.1390338,9e-05,2]
[339948124,1728188730326,220.58003561,0.000101,2]
[339948125,1728188802731,160.1545487,0.000109,2]
[339948126,1728188831126,-163.9,0.00010959,2]
[339948127,1728188831147,-143.19865762,0.00010959,2]
[339948128,1728188884761,185.47,0.00010199,2]
[339948129,1728188884841,7650.46400049,0.000109,2]
[339948136,1728188944856,250.0,0.0001019,2]
[339948162,1728189032205,-18.64134238,0.00010959,2]
[339948163,1728189032214,-296.19835911,0.0001099,2]
[339948164,1728189032226,-7805.61782161,0.0001099,2]
[339948165,1728189032235,-246.42192017,0.00010999,2]
[339948166,1728189032244,-1335.91619851,0.00010999,2]
[339948167,1728189032254,-198.547,0.00010999,2]
[339948168,1728189032263,-150.0,0.00010999,2]
[339948169,1728189032273,-3525.49705971,0.00011,2]
[339948170,1728189032284,-1400.00146693,0.00011,2]
[339948175,1728189038004,160.1545487,0.000109,2]
[339948197,1728189039213,-2910.29277304,0.00011,2]
[339948199,1728189040105,-681.26488617,0.00011,2]
[339948200,1728189040223,-1149.96,0.00011,2]
[339948201,1728189040236,-4819.43112673,0.00011,2]
[339948204,1728189042998,160.1545487,0.00010935,2]
[339948205,1728189043095,-259.4880914,0.00011,2]
[339948206,1728189043155,-18690.30796222,0.00011,2]
[339948207,1728189043166,-304.81493232,0.00011,2]
[339948208,1728189043215,-295.86000036,0.00011,2]
[339948209,1728189043226,-67552.02367707,0.00011,2]
[339948210,1728189043274,-12431.61514992,0.00011,2]
[339948211,1728189043286,-1979.18188074,0.00011,2]
[339948212,1728189043423,-7981.01020727,0.00011,2]
[339948217,1728189046068,-270151.89128866,0.00011,2]
[339948218,1728189046080,-122297.4226101,0.00011,2]
[339948219,1728189046127,-282.58601024,0.00011,2]
[339948220,1728189046190,-5008.17589993,0.00011,2]
[339948221,1728189046204,-250.10479714,0.00011,2]
[339948222,1728189046305,-12181.45042317,0.00011,2]
[339948223,1728189046608,-3060.67945176,0.00011,2]
[339948224,1728189064316,669.96,8.411e-05,2]
[339948225,1728189064459,669.96,0.00010675,2]
[339948226,1728189106739,23900.0,0.0001025,2]
[339948227,1728189150115,289.85,0.0001025,2]
[339948228,1728189157033,172.03,0.0001025,2]
[339948229,1728189201113,603.2,0.0001034,2]
[339948230,1728189263323,160.1545487,0.000109,2]
[339948231,1728189310091,6885.41760036,0.000109,2]
[339948232,1728189325195,250.0,0.00010368,2]
[339948233,1728189386568,307.8,0.00010196,2]
[339948234,1728189590617,602.96,8.262e-05,2]
[339948235,1728189590817,602.96,0.00010526,2]
[339948236,1728189610109,23900.0,0.00010184,2]
[339948237,1728189735541,6196.87584036,0.000109,2]
[339948238,1728189852516,289.85,0.00010142,2]
[339948239,1728189881949,250.0,0.00010164,2]
[339948240,1728189889897,1000.0,0.00010167,2]
[339948241,1728190020363,162.03,0.00010116,2]
[339948244,1728190118568,542.66,8.219e-05,2]
[339948245,1728190118821,542.66,0.00010482,2]
[339948246,1728190160903,5577.18825636,0.000109,2]
[339948266,1728190238464,-160.7,0.00010959,2]
[339948267,1728190238473,-158.838,0.00010959,2]
[339948268,1728190238482,-150.0,0.00010986,2]
[339948269,1728190238491,-10016.2271322,0.00010995,2]
[339948290,1728190241030,-1497.0869186,0.00010995,2]
[339948291,1728190241039,-1573.28653482,0.00010999,2]
[339948292,1728190241049,-150.0,0.00010999,2]
[339948293,1728190241059,-525.0,0.00011,2]
[339948294,1728190241068,-2140.31056409,0.00011,2]
[339948295,1728190241080,-2994.36697904,0.00011,2]
[339948296,1728190241095,-13253.22423378,0.00011,2]
[339948297,1728190241111,-349.58567251,0.00011,2]
[339948298,1728190241123,-1238.39601586,0.00011,2]
[339948302,1728190243397,-67552.02367707,0.00011,2]
[339948325,1728190246395,-6805.7,0.00011,2]
[339948390,1728190293783,9852.55,0.00010345,2]
[339948391,1728190425698,200.0,0.00010341,2]
[339948392,1728190507065,250.0,0.00010328,2]
[339948393,1728190524341,185.47,0.00010324,2]
[339948394,1728190586138,5019.46943067,0.000109,2]
[339948395,1728190701439,488.39,8.325e-05,2]
[339948396,1728190701667,488.39,0.00010589,2]
[339948397,1728190943928,5290.0,0.00021,90]
[339948398,1728190994628,840.0,0.00010183,2]
[339948399,1728191011429,4517.52248763,0.000109,2]
[339948400,1728191038631,250.0,0.00010192,2]
[339948401,1728191049860,246.24,0.00010183,2]
[339948402,1728191066001,-167.6,0.00010959,2]
[339948403,1728191066022,-158.838,0.00010959,2]
[339948404,1728191066043,-1939.8924364,0.00010995,2]
[339948405,1728191066064,-10497.9681155,0.00010995,2]
[339948406,1728191066085,-1000.0,0.00010999,2]
[339948407,1728191066106,-150.0,0.00010999,2]
[339948408,1728191066134,-4295.70861611,0.00011,2]
[339948409,1728191066156,-25463.99283199,0.00011,2]
[339948410,1728191108875,21248.0519,0.000109,2]
[339948411,1728191111508,-24574.0,0.00011,2]
[339948412,1728191115867,3438.4003,0.000109,2]
[339948413,1728191204714,460.92,8.272e-05,2]
[339948414,1728191204930,460.92,0.00010536,2]
[339948415,1728191259420,738.23344656,0.00010898,2]
[339948416,1728191263877,738.23344655,0.00010899,2]
[339948417,1728191270934,738.23344655,0.00010899,2]
[339948423,1728191431353,-163.9,0.00010959,2]
[339948424,1728191431363,-255.47282641,0.00010998,2]
[339948425,1728191431412,-44.52717359,0.00010998,2]
[339948426,1728191431421,-150.0,0.00010999,2]
[339948427,1728191431429,-146.2601843,0.00010999,2]
[339948428,1728191431441,-353.7398157,0.00010999,2]
[339948429,1728191431450,-349.63806748,0.00010999,2]
[339948430,1728191431461,-150.36193252,0.00010999,2]
[339948431,1728191431470,-500.0,0.00010999,2]
[339948432,1728191431479,-165.69385469,0.00010999,2]
[339948433,1728191431577,-21.55407443,0.00010999,2]
[339948434,1728191431588,-166.57589412,0.00010999,2]
[339948435,1728191431596,-500.0,0.00010999,2]
[339948436,1728191431605,-500.0,0.00010999,2]
[339948437,1728191431615,-500.0,0.00010999,2]
[339948438,1728191431623,-138.81716388,0.00010999,2]
[339948439,1728191431635,-361.18283612,0.00010999,2]
[339948440,1728191431645,-500.0,0.00010999,2]
[339948441,1728191431654,-500.0,0.00010999,2]
[339948442,1728191431663,-190877.04378803,0.00011,2]
[339948443,1728191431681,-2458.57646155,0.00011,2]
[339948459,1728191436742,4065.77023884,0.000109,2]
[339948463,1728191437513,-527.59762228,0.00011,2]
[339948464,1728191437524,-47262.88261093,0.00011,2]
[339948465,1728191437536,-770.81769835,0.00011,2]
[339948466,1728191437569,-275.96458678,0.00011,2]
[339948467,1728191437580,-29667.77825566,0.00011,2]
[339948468,1728191437591,-1826.19952413,0.00011,2]
[339948469,1728191437602,-310.24010705,0.00011,2]
[339948503,1728191442561,-79407.60121063,0.00011,2]
[339948504,1728191442573,-311.01320095,0.00011,2]
[339948507,1728191445576,-435.93874686,0.00011,2]
[339948508,1728191445588,-1203.491268,0.00011,2]
[339948509,1728191445599,-61303.54393119,0.00011,2]
[339948510,1728191475023,2778.39,0.00010401,2]
[339948511,1728191508982,328.0,0.00010245,2]
[339948512,1728191522500,635.9888,0.000109,2]
[339948513,1728191585410,158.48,0.00010255,2]
[339948514,1728191595469,1467.43,0.00010255,2]
[339948515,1728191647578,250.0,0.00010211,2]
[339948516,1728191693811,414.82,8.293e-05,2]
[339948517,1728191694021,414.82,0.00010557,2]
[339948518,1728191862002,3659.19321501,0.000109,2]
[339948519,1728191930306,-1000.0,0.00010999,3]
[339948520,1728191935506,-205.42685477,0.00010999,3]
[339948521,1728192052244,737.6,0.00010351,2]
[339948522,1728192191816,250.0,0.00010345,2]
[339948523,1728192220190,208.5,0.00010307,2]
[339948524,1728192287415,3293.2738935,0.000109,2]
[339948525,1728192323733,2551.72,0.00010353,2]
[339948526,1728192323998,2551.72,0.00010356,2]
[339948527,1728192324319,2551.72,0.00010358,2]
[339948528,1728192324413,2551.72,0.00010361,2]
[339948529,1728192324631,2551.72,0.00010364,2]
[339948530,1728192324854,2551.72,0.00010366,2]
[339948531,1728192325154,2551.72,0.00010369,2]
[339948532,1728192325560,2551.72,0.00010372,2]
[339948533,1728192325787,2551.72,0.00010375,2]
[339948534,1728192326010,2551.72,0.00010377,2]
[339948535,1728192326231,2551.72,0.0001038,2]
[339948536,1728192326622,2551.72,0.00010383,2]
[339948537,1728192326831,2551.72,0.00010385,2]
[339948538,1728192327044,2551.72,0.00010388,2]
[339948539,1728192327246,2551.72,0.00010391,2]
[339948540,1728192327646,2551.72,0.00010394,2]
[339948541,1728192327844,2551.72,0.00010396,2]
[339948542,1728192328059,2551.72,0.00010399,2]
[339948543,1728192328272,2551.72,0.00010402,2]
[339948544,1728192329050,2551.72,0.00010404,2]
[339948545,1728192340928,389.75,9.3e-05,2]
[339948547,1728192431132,-162.03,0.00010959,2]
[339948548,1728192431153,-145.0699218,0.00010999,2]
[339948571,1728192631568,-155.95,0.00010959,2]
[339948572,1728192631577,-156.07099594,0.00010999,2]
[339948573,1728192631589,-272.1846872,0.00010999,2]
[339948574,1728192631692,-173.07981899,0.00010999,2]
[339948575,1728192631702,-168.40668733,0.00010999,2]
[339948576,1728192631711,-161.663,0.00010999,2]
[339948577,1728192631720,-863.96773702,0.00011,2]
[339948578,1728192631755,-567.14,0.00011,2]
[339948584,1728192637574,-5906.63080696,0.00011,2]
[339948586,1728192637633,-5124.74242063,0.00011,2]
[339948587,1728192637697,-2424.99999999,0.00011,2]
[339948588,1728192637708,-1077.1117242,0.00011,2]
[339948589,1728192637758,-47148.52325366,0.00011,2]
[339948590,1728192637767,-1037360.1893009,0.00011,2]
[339948591,1728192637779,-691.4869725,0.00011,2]
[339948592,1728192637790,-19203.09517163,0.00011,2]
[339948596,1728192639714,-269.45352146,0.00011,2]
[339948597,1728192639726,-485.13,0.00011,2]
[339948598,1728192639756,-104.88822893,0.00011,2]
[339948599,1728192639767,-1399.85886565,0.00011,2]
[339948600,1728192639777,-468.5,0.00011,2]
[339948601,1728192639842,-41680.38580758,0.00011,2]
[339948605,1728192642766,-442.37795021,0.00011,2]
[339948606,1728192642777,-275.01000006,0.00011,2]
[339948611,1728192645674,-980.19688546,0.00011,2]
[339948612,1728192645850,-1570.36096782,0.00011,2]
[339948680,1728192707883,270.05272819,0.000109,2]
[339948681,1728192712669,3944.22986043,0.000109,2]
[339948682,1728192753544,221.2781112,0.000109,2]
[339948683,1728192775915,169.22076499,0.000109,2]
[339948684,1728192777350,154.62586306,0.000109,2]
[339948685,1728192787656,195.295982,0.000109,2]
[339948686,1728192797876,500.0,0.00010912,2]
[339948687,1728192833246,250.0,0.00010921,2]
[339948688,1728192834771,13959.3691,0.000109,2]
[339948689,1728192843047,180.03515214,0.000109,2]
[339948690,1728192848347,370.26,9.003e-05,2]
[339948691,1728192859096,43160.4636,0.000109,2]
[339948692,1728192961352,1625.61586106,0.0001089,2]
[339948693,1728193092021,261.5107,0.000109,2]
[339948694,1728193137939,3549.80687445,0.000109,2]
[339948695,1728193357764,367.63,9.042e-05,2]
[339948696,1728193397534,500.0,8.97e-05,2]
[339948697,1728193441859,2051.0037,0.000109,2]
[339948698,1728193462200,208.94796885,0.000109,2]
[339948699,1728193560683,286.05,0.00010941,2]
[339948700,1728193563231,3194.82618696,0.000109,2]
[339948710,1728193767460,1947.0,0.000109,2]
[339948711,1728193779003,1000.0,0.00010931,2]
[339948712,1728193810655,280.81926638,0.000109,2]
[339948714,1728193831702,-166.15,0.00010959,2]
[339948715,1728193831711,-150.0,0.00010959,2]
[339948716,1728193831722,-167.6,0.00010959,2]
[339948717,1728193831731,-115.22184433,0.00010959,2]
[339948718,1728193831743,-205.06815567,0.00010959,2]
[339948719,1728193831753,-182.885,0.00010959,2]
[339948720,1728193831762,-162.203,0.00010959,2]
[339948721,1728193831772,-250.0,0.00010983,2]
[339948722,1728193831782,-150.0,0.00010989,2]
[339948723,1728193831791,-300.0,0.00010989,2]
[339948724,1728193831801,-48.14236045,0.00010989,2]
[339948725,1728193831813,-542.67878054,0.00010989,2]
[339948726,1728193831825,-409.17885901,0.00010989,2]
[339948727,1728193831835,-3421.98154894,0.0001099,2]
[339948728,1728193831846,-1974.8225,0.0001099,2]
[339948729,1728193831887,-261.39657885,0.0001099,2]
[339948730,1728193831899,-1830.0504098,0.0001099,2]
[339948731,1728193831910,-543.93664471,0.0001099,2]
[339948732,1728193831954,-792.5901174,0.0001099,2]
[339948733,1728193831966,-420.816,0.0001099,2]
[339948734,1728193832015,-5045.81686439,0.0001099,2]
[339948735,1728193832027,-2613.10872722,0.0001099,2]
[339948738,1728193837864,-23134.73941336,0.0001099,2]
[339948739,1728193837873,-295.81731692,0.0001099,2]
[339948740,1728193837882,-1403.1862492,0.00010995,2]
[339948741,1728193837892,-372.0752996,0.00010995,2]
[339948742,1728193837901,-8470.2701681,0.00010995,2]
[339948743,1728193837910,-150.88728716,0.00010999,2]
[339948744,1728193837920,-319.23972953,0.00010999,2]
[339948745,1728193837929,-301388.9990496,0.00010999,2]
[339948746,1728193837938,-500.0,0.00010999,2]
[339948747,1728193837948,-183.14131808,0.00010999,2]
[339948748,1728193837957,-500.0,0.00010999,2]
[339948749,1728193837966,-500.0,0.00010999,2]
[339948750,1728193837976,-162.53496791,0.00010999,2]
[339948751,1728193837985,-500.0,0.00010999,2]
[339948752,1728193837994,-605.08130238,0.00010999,2]
[339948753,1728193838003,-999.99,0.00010999,2]
[339948754,1728193838012,-299.99,0.00010999,2]
[339948755,1728193838021,-499.99,0.00010999,2]
[339948756,1728193838030,-660.54,0.00010999,2]
[339948757,1728193838039,-858.42,0.00010999,2]
[339948758,1728193838048,-2312.75,0.00010999,2]
[339948759,1728193838057,-150.99,0.00010999,2]
[339948760,1728193838066,-198.98,0.00010999,2]
[339948761,1728193838075,-502.39848401,0.00010999,2]
[339948762,1728193838092,-602.07,0.00010999,2]
[339948763,1728193838105,-150.99,0.00010999,2]
[339948764,1728193838114,-3247.01,0.00010999,2]
[339948765,1728193838124,-555.35,0.00010999,2]
[339948766,1728193838133,-692638.9568743,0.00011,2]
[339948767,1728193838150,-990.63368508,0.00011,2]
[339948768,1728193838161,-6671.76743209,0.00011,2]
[339948775,1728193839739,-13495.488134,0.00011,2]
[339948824,1728193843019,-159.61986477,0.00010999,2]
[339948825,1728193843029,-575.38013523,0.00011,2]
[339948834,1728193988564,2875.3435683,0.000109,2]
[339948835,1728193988870,11486.0,0.000109,5]
[339948836,1728194019313,-1000.0,0.00011,3]
[339948837,1728194021345,-1000.0,0.00011,3]
[339948838,1728194023458,-1000.0,0.00011,3]
[339948839,1728194024844,-1000.0,0.00011,3]
[339948840,1728194110350,380.12,9.301e-05,2]
[339948841,1728194370905,-400.0,0.00011,3]
[339948842,1728194413857,2587.80921147,0.000109,2]
[339948843,1728194496441,250.0,0.0001061,2]
[339948844,1728194580015,250.0,0.00010664,2]
[339948845,1728194648276,377.55,8.869e-05,2]
[339948846,1728194674218,10921.1588,0.00010859,2]
[339948847,1728194678890,150.0,0.0001097,4]
[339948848,1728194753496,170.55,0.00010601,2]
[339948849,1728194753697,170.55,0.00010611,2]
[339948850,1728194753902,170.55,0.00010622,2]
[339948851,1728194754112,170.55,0.00010632,2]
[339948852,1728194754312,170.55,0.00010643,2]
[339948853,1728194754537,170.55,0.00010654,2]
[339948854,1728194761915,315.65,0.00010685,2]
[339948855,1728194768465,150.0,9.888e-05,2]
[339948856,1728194782174,345.83,0.00010532,2]
[339948857,1728194831496,23900.0,0.00010806,2]
[339948858,1728194837036,298.0,0.0001061,2]
[339948859,1728194839290,2329.02829026,0.000109,2]
[339948860,1728194845371,695.0,0.0001061,2]
[339948861,1728194983028,170.06,0.00010941,2]
[339948863,1728195004699,1028.42221645,0.00010859,2]
[339948865,1728195031900,-800.0,0.00010955,2]
[339948866,1728195031910,-163.9,0.00010959,2]
[339948867,1728195031920,-500.0,0.00010959,2]
[339948868,1728195031929,-500.0,0.00010959,2]
[339948869,1728195031939,-162.03,0.00010959,2]
[339948870,1728195031948,-244.3,0.00010968,2]
[339948871,1728195031957,-451.95,0.00010975,2]
[339948872,1728195031967,-2718.32,0.00010982,2]
[339948873,1728195031975,-152.07067533,0.00010986,2]
[339948874,1728195031985,-813.022,0.0001099,2]
[339948875,1728195031995,-645.293,0.0001099,2]
[339948876,1728195032004,-555.247,0.0001099,2]
[339948877,1728195032014,-924.40265047,0.0001099,2]
[339948878,1728195032025,-2442.28534953,0.0001099,2]
[339948879,1728195032034,-1391.89650312,0.0001099,2]
[339948880,1728195032068,-263.99149982,0.0001099,2]
[339948881,1728195032081,-265.26799706,0.0001099,2]
[339948882,1728195032090,-812.0,0.0001099,2]
[339948883,1728195032100,-1916.812,0.0001099,2]
[339948884,1728195032109,-590.853,0.00010994,2]
[339948885,1728195032119,-2360.64133652,0.00010994,2]
[339948886,1728195032130,-2946.57874193,0.00010994,2]
[339948887,1728195032141,-340.28165674,0.00010994,2]
[339948888,1728195032152,-7601.02226481,0.00010994,2]
[339948889,1728195032162,-283.161,0.00010994,2]
[339948890,1728195032171,-1241.51,0.00010994,2]
[339948891,1728195032181,-949.53175848,0.00010999,2]
[339948892,1728195032190,-182.885,0.00010999,2]
[339948893,1728195032200,-500.0,0.00010999,2]
[339948894,1728195032210,-500.0,0.00010999,2]
[339948895,1728195032219,-374.97105889,0.00010999,2]
[339948896,1728195032228,-92275.65794047,0.00011,2]
[339948897,1728195032239,-655.60712406,0.00011,2]
[339948904,1728195038143,-1082.0,0.00010994,2]
[339948905,1728195038154,-1410.1,0.00011,2]
[339948906,1728195038235,-4840.2,0.00011,2]
[339948907,1728195038327,-1676.50215981,0.00011,2]
[339948973,1728195040171,-1517.02791151,0.00011,2]
[339948974,1728195040182,-2385.83361094,0.00011,2]
[339948975,1728195040239,-150.00108625,0.00011,2]
[339948995,1728195067722,635.59200692,0.0001045,2]
[339948997,1728195083045,170.92,8.964e-05,2]
[339948998,1728195105115,1335.80815159,0.00010895,2]
[339948999,1728195130302,999.29,9.208e-05,2]
[339949000,1728195157266,927.94322098,0.00010876,2]
[339949001,1728195168332,57517.0,0.00021,90]
[339949002,1728195210726,10000.0,0.0001045,2]
[339949003,1728195211438,4137.49137963,0.0001045,2]
[339949004,1728195264633,2096.12546127,0.000109,2]
[339949005,1728195632372,949.32,9.109e-05,2]
[339949006,1728195689941,1886.51291517,0.000109,2]
[339949007,1728195694408,5818.3,0.00010728,2]
[339949008,1728195727244,-158.63,0.00010959,2]
[339949009,1728195727268,-360.0,0.00010985,2]
[339949010,1728195727289,-8230.9210322,0.00010995,2]
[339949011,1728195727312,-158.74539218,0.00010999,2]
[339949012,1728195727337,-192.629,0.00010999,2]
[339949013,1728195727361,-300.0,0.00010999,2]
[339949014,1728195727389,-599.07457562,0.00011,2]
[339949015,1728195728955,-10000.0,0.00011,2]
[339949016,1728195730022,-10000.0,0.00010999,2]
[339949017,1728195732846,-4336.54528534,0.00010999,2]
[339949018,1728195732875,-5663.45471466,0.00011,2]
[339949019,1728195740967,-10000.0,0.00011,2]
[339949020,1728195755748,-2829.0,0.00011,3]
[339949021,1728195764707,-7171.0,0.00011,2]
[339949022,1728195919921,7607.62091834,9e-05,2]
[339949023,1728195920955,7500.0,0.000109,2]
[339949024,1728195929645,448.1939945,0.000101,2]
[339949025,1728195937154,1000.0,0.00021,90]
[339949026,1728196032777,-195.44,0.00010996,2]
[339949027,1728196032801,-111.66118387,0.00011,2]
[339949028,1728196038934,1000.0,0.00010838,2]
[339949029,1728196064805,505.95316143,0.0001,2]
[339949030,1728196067750,443.13,0.00010811,2]
[339949031,1728196115283,1697.86162359,0.000109,2]
[339949033,1728196173189,150.0,0.00010864,2]
[339949043,1728196223701,901.85,9.344e-05,2]
[339949052,1728196232050,-150.33,0.00010972,2]
[339949054,1728196232060,-2574.98554089,0.0001099,2]
[339949057,1728196232071,-476.09994262,0.0001099,2]
[339949059,1728196232081,-3538.57548688,0.0001099,2]
[339949062,1728196232128,-86879.15888628,0.0001099,2]
[339949063,1728196232209,-3105.94634713,0.0001099,2]
[339949068,1728196238202,-349.87799986,0.0001099,2]
[339949069,1728196238283,-1275.15327242,0.0001099,2]
[339949070,1728196238358,-300.0,0.0001099,2]
[339949071,1728196238370,-2755.89191433,0.0001099,2]
[339949072,1728196238436,-8621.8751648,0.0001099,2]
[339949073,1728196238447,-1849.01762945,0.0001099,2]
[339949075,1728196238459,-10486.24892213,0.0001099,2]
[339949077,1728196238469,-4677.0211687,0.0001099,2]
[339949079,1728196238480,-6071.23031157,0.0001099,2]
[339949081,1728196238492,-21760.45863702,0.0001099,2]
[339949121,1728196240130,-65480.84830672,0.0001099,2]
[339949122,1728196240139,-209.8928137,0.00010995,2]
[339949123,1728196240148,-1935.5029442,0.00010995,2]
[339949124,1728196240158,-135647.94236823,0.00011,2]
[339949125,1728196240211,-7650.43,0.00011,2]
[339949126,1728196240346,-0.16579544,0.00011,2]
[339949127,1728196240356,-5966.59176036,0.00011,2]
[339949128,1728196240366,-31550.27322222,0.00011,2]
[339949129,1728196241405,1429.61844586,0.0001045,2]
[339949143,1728196243221,-1491.43172121,0.00011,2]
[339949144,1728196243233,-1280.14,0.00011,2]
[339949145,1728196243244,-14060.50957875,0.00011,2]
[339949146,1728196243254,-1897.54753777,0.00011,2]
[339949147,1728196243265,-977.39069926,0.00011,2]
[339949148,1728196243275,-927.77,0.00011,2]
[339949149,1728196243312,-278.59999992,0.00011,2]
[339949150,1728196243323,-414.48108,0.00011,2]
[339949151,1728196243333,-356.992007,0.00011,2]
[339949152,1728196243344,-793.6575,0.00011,2]
[339949153,1728196243354,-3563.9999998,0.00011,2]
[339949154,1728196243392,-374.72962927,0.00011,2]
[339949155,1728196243403,-25161.98881745,0.00011,2]
[339949156,1728196243456,1191.96,0.0001095,2]
[339949162,1728196246124,-1455.39500522,0.00011,2]
[339949163,1728196246135,-32116.86348358,0.00011,2]
[339949164,1728196246146,-6084.5,0.00011,2]
[339949165,1728196246215,-404.48230813,0.00011,2]
[339949166,1728196246294,-1861.594756,0.00011,2]
[339949167,1728196246372,-3418.46687015,0.00011,2]
[339949170,1728196367014,1907.6503,0.000109,2]
[339949173,1728196470171,23900.0,0.00010787,2]
[339949174,1728196482265,250.0,0.00010787,2]
[339949175,1728196512045,897.22,0.00010798,2]
[339949176,1728196540657,1528.07546124,0.000109,2]
[339949177,1728196633883,361.56,0.00010841,2]
[339949178,1728196690797,170.06,0.00010824,2]
[339949179,1728196726513,893.09,8.942e-05,2]
[339949180,1728196798592,250.0,0.00010815,2]
[339949181,1728196822597,1000.0,0.00010786,2]
[339949182,1728196965971,1375.26791517,0.000109,2]
[339949183,1728196995952,250.0,0.00010828,2]
[339949184,1728197000425,23900.0,0.00010828,2]
[339949185,1728197025413,448.61,0.00010828,2]
[339949186,1728197216508,848.43,8.831e-05,2]
[339949187,1728197322402,250.0,0.00010726,2]
[339949193,1728197348475,200.0,0.00010733,2]
[339949194,1728197391236,1237.74112359,0.000109,2]
[339949211,1728197432327,-163.7,0.00010959,2]
[339949212,1728197432337,-163.9,0.00010959,2]
[339949213,1728197432346,-484.3,0.00010959,2]
[339949214,1728197432356,-500.0,0.00010973,2]
[339949215,1728197432365,-569.00580567,0.0001099,2]
[339949216,1728197432377,-174.910678,0.00010995,2]
[339949217,1728197432387,-484.5910342,0.00010995,2]
[339949218,1728197432397,-1000.0,0.00010999,2]
[339949219,1728197432407,-194.167,0.00010999,2]
[339949220,1728197432417,-162.204,0.00010999,2]